[Event "*** Titled Tuesday Blitz"]
[Site "Chess.com"]
[Date "2018.04.03"]
[Round "4"]
[White "comedy_of_errors"]
[Black "JozefKneht"]
[Result "0-1"]
[WhiteElo "2419"]
[BlackElo "2422"]
[TimeControl "180+2"]
[EndTime "13:49:46 PDT"]
[Termination "JozefKneht won by resignation"]

1. Nf3 {[%clk 0:03:01.9]} 1... d5 {[%clk 0:02:58.9]} 2. g3 {[%clk 0:03:02.8]}
2... c6 {[%clk 0:02:58.7]} 3. Bg2 {[%clk 0:03:03.9]} 3... Nf6 {[%clk 0:02:56.7]}
4. O-O {[%clk 0:03:05.2]} 4... Bf5 {[%clk 0:02:57.1]} 5. c4 {[%clk 0:03:04]}
5... e6 {[%clk 0:02:57.3]} 6. cxd5 {[%clk 0:03:04.3]} 6... cxd5 {[%clk
0:02:53.9]} 7. Qb3 {[%clk 0:03:04.3]} 7... Qb6 {[%clk 0:02:50.2]} 8. Qxb6 {[%clk
0:03:05.3]} 8... axb6 {[%clk 0:02:52]} 9. d3 {[%clk 0:03:07.1]} 9... Nc6 {[%clk
0:02:44.5]} 10. Nc3 {[%clk 0:03:06.5]} 10... Be7 {[%clk 0:02:24.1]} 11. Bd2
{[%clk 0:03:07.6]} 11... O-O {[%clk 0:02:21.6]} 12. Nh4 {[%clk 0:03:08.2]} 12...
Bg4 {[%clk 0:02:19.8]} 13. h3 {[%clk 0:03:08.8]} 13... Bh5 {[%clk 0:02:20]} 14.
g4 {[%clk 0:03:09.8]} 14... Bg6 {[%clk 0:02:21.6]} 15. Nxg6 {[%clk 0:03:11]}
15... hxg6 {[%clk 0:02:19.8]} 16. Rfc1 {[%clk 0:03:10.1]} 16... Rfc8 {[%clk
0:02:06.5]} 17. Nb5 {[%clk 0:03:05.2]} 17... Nd7 {[%clk 0:01:36.9]} 18. Kf1
{[%clk 0:02:49.6]} 18... Bf6 {[%clk 0:01:36.6]} 19. Rc2 {[%clk 0:02:41.4]} 19...
Nd4 {[%clk 0:01:32.2]} 20. Rxc8+ {[%clk 0:02:29.8]} 20... Rxc8 {[%clk
0:01:30.8]} 21. Nc3 {[%clk 0:02:31.7]} 21... Nc5 {[%clk 0:01:18.6]} 22. Rc1
{[%clk 0:02:15.4]} 22... Ra8 {[%clk 0:01:05]} 23. g5 {[%clk 0:01:39]} 23... Be7
{[%clk 0:01:00.8]} 24. e3 {[%clk 0:01:40.3]} 24... Nc6 {[%clk 0:00:46.5]} 25. d4
{[%clk 0:01:38.1]} 25... Na4 {[%clk 0:00:46.2]} 26. h4 {[%clk 0:01:14.5]} 26...
Nxb2 {[%clk 0:00:42.2]} 27. Ke2 {[%clk 0:01:12.7]} 27... Nc4 {[%clk 0:00:41.3]}
28. Be1 {[%clk 0:01:09.3]} 28... Bb4 {[%clk 0:00:38.8]} 29. Rc2 {[%clk
0:01:10.7]} 29... Ba5 {[%clk 0:00:34.4]} 30. Kd3 {[%clk 0:00:58.6]} 30... Nb4+
{[%clk 0:00:30.9]} 0-1

[Event "*** Titled Tuesday Blitz"]
[Site "Chess.com"]
[Date "2018.04.03"]
[Round "4"]
[White "RichardABates"]
[Black "OparinGrigoriy"]
[Result "0-1"]
[WhiteElo "2069"]
[BlackElo "2822"]
[TimeControl "180+2"]
[EndTime "13:49:51 PDT"]
[Termination "OparinGrigoriy won by resignation"]

1. d4 {[%clk 0:03:01.9]} 1... Nf6 {[%clk 0:03:00.8]} 2. Nf3 {[%clk 0:03:02.1]}
2... e6 {[%clk 0:03:02.7]} 3. c4 {[%clk 0:03:02.4]} 3... b6 {[%clk 0:03:02.9]}
4. g3 {[%clk 0:03:02.5]} 4... Bb7 {[%clk 0:03:03.4]} 5. Bg2 {[%clk 0:03:03.3]}
5... Be7 {[%clk 0:03:03.7]} 6. O-O {[%clk 0:03:03.5]} 6... O-O {[%clk
0:03:04.8]} 7. Nc3 {[%clk 0:03:03.6]} 7... Ne4 {[%clk 0:03:05.9]} 8. Bd2 {[%clk
0:03:02.9]} 8... Bf6 {[%clk 0:03:06.2]} 9. Rc1 {[%clk 0:02:55.2]} 9... Nxd2
{[%clk 0:03:01.1]} 10. Qxd2 {[%clk 0:02:55.4]} 10... d6 {[%clk 0:03:02.4]} 11.
e4 {[%clk 0:02:53.7]} 11... Nd7 {[%clk 0:03:03.9]} 12. d5 {[%clk 0:02:36.1]}
12... e5 {[%clk 0:03:04.9]} 13. Ne1 {[%clk 0:02:34.7]} 13... a5 {[%clk
0:03:06.3]} 14. Nd3 {[%clk 0:02:35.1]} 14... Bg5 {[%clk 0:03:05.2]} 15. f4
{[%clk 0:02:33.1]} 15... Bh6 {[%clk 0:03:06.7]} 16. Rce1 {[%clk 0:02:25.4]}
16... Qe7 {[%clk 0:03:07.5]} 17. Qd1 {[%clk 0:02:23.4]} 17... exf4 {[%clk
0:03:06.4]} 18. gxf4 {[%clk 0:02:24.1]} 18... Rae8 {[%clk 0:03:07.9]} 19. e5
{[%clk 0:02:18.7]} 19... Qh4 {[%clk 0:03:07.8]} 20. Kh1 {[%clk 0:01:35]} 20...
dxe5 {[%clk 0:03:03.8]} 21. fxe5 {[%clk 0:01:34.9]} 21... Qxc4 {[%clk
0:03:04.9]} 22. Re4 {[%clk 0:01:30.5]} 22... Qa6 {[%clk 0:02:59.5]} 23. Rfe1
{[%clk 0:00:59.8]} 23... Qa8 {[%clk 0:02:57.8]} 24. Rh4 {[%clk 0:00:51]} 24...
Bg5 {[%clk 0:02:51.4]} 25. Rh5 {[%clk 0:00:48]} 25... Bd8 {[%clk 0:02:48.5]} 26.
Be4 {[%clk 0:00:45.7]} 26... g6 {[%clk 0:02:49.5]} 27. Rg1 {[%clk 0:00:37.7]}
27... Bf6 {[%clk 0:02:35.4]} 28. Rxh7 {[%clk 0:00:37.2]} 28... Rxe5 {[%clk
0:01:47.2]} 29. Nxe5 {[%clk 0:00:35.2]} 29... Nxe5 {[%clk 0:01:47.6]} 30. Qh5
{[%clk 0:00:35.1]} 30... Qe8 {[%clk 0:01:42.9]} 31. d6 {[%clk 0:00:29.6]} 31...
Bxe4+ {[%clk 0:01:36.9]} 32. Nxe4 {[%clk 0:00:29.8]} 32... Qc6 {[%clk
0:01:35.7]} 33. Qf5 {[%clk 0:00:27.8]} 33... Kxh7 {[%clk 0:01:30.9]} 34. Qh3+
{[%clk 0:00:23]} 34... Kg7 {[%clk 0:01:23.6]} 0-1

[Event "*** Titled Tuesday Blitz"]
[Site "Chess.com"]
[Date "2018.04.03"]
[Round "4"]
[White "LastHeroJr"]
[Black "guillembaches"]
[Result "1-0"]
[WhiteElo "2431"]
[BlackElo "2238"]
[TimeControl "180+2"]
[EndTime "13:49:52 PDT"]
[Termination "LastHeroJr won on time"]

1. e4 {[%clk 0:03:01.9]} 1... c5 {[%clk 0:03:00.5]} 2. Nf3 {[%clk 0:03:02.9]}
2... d6 {[%clk 0:03:01.6]} 3. d4 {[%clk 0:03:04.2]} 3... cxd4 {[%clk 0:03:03.5]}
4. Nxd4 {[%clk 0:03:05.9]} 4... Nf6 {[%clk 0:03:04.2]} 5. Nc3 {[%clk 0:03:07.5]}
5... Nc6 {[%clk 0:03:05.4]} 6. Bg5 {[%clk 0:03:07.8]} 6... e6 {[%clk 0:03:06.5]}
7. Qd2 {[%clk 0:03:08.9]} 7... h6 {[%clk 0:03:06.2]} 8. Be3 {[%clk 0:03:05.2]}
8... Ng4 {[%clk 0:03:06]} 9. Nxc6 {[%clk 0:03:02.9]} 9... bxc6 {[%clk
0:03:03.8]} 10. Bf4 {[%clk 0:03:04.2]} 10... e5 {[%clk 0:03:00.8]} 11. Bg3
{[%clk 0:03:05]} 11... Qb6 {[%clk 0:02:41.4]} 12. O-O-O {[%clk 0:03:02]} 12...
Rb8 {[%clk 0:02:42]} 13. b3 {[%clk 0:03:03.4]} 13... Be7 {[%clk 0:02:39.7]} 14.
h3 {[%clk 0:02:41.5]} 14... Nf6 {[%clk 0:02:37.3]} 15. Be2 {[%clk 0:02:42.1]}
15... Qb4 {[%clk 0:02:02.8]} 16. Bd3 {[%clk 0:02:33]} 16... Nh5 {[%clk
0:01:57.1]} 17. Kb1 {[%clk 0:02:28.7]} 17... Nxg3 {[%clk 0:01:41.2]} 18. fxg3
{[%clk 0:02:29.3]} 18... Be6 {[%clk 0:01:38.6]} 19. Ne2 {[%clk 0:02:22.1]} 19...
Qa3 {[%clk 0:01:32.2]} 20. Qc3 {[%clk 0:02:18.7]} 20... O-O {[%clk 0:01:25.4]}
21. Bc4 {[%clk 0:02:17.9]} 21... d5 {[%clk 0:01:14.4]} 22. exd5 {[%clk
0:02:18.6]} 22... cxd5 {[%clk 0:01:14.9]} 23. Bxd5 {[%clk 0:02:20.3]} 23... Bf5
{[%clk 0:01:14.8]} 24. Qb2 {[%clk 0:02:15.1]} 24... Qa5 {[%clk 0:01:06.1]} 25.
Rhf1 {[%clk 0:02:05.1]} 25... Bg6 {[%clk 0:00:49.5]} 26. Qxe5 {[%clk 0:01:37.2]}
26... Bxc2+ {[%clk 0:00:42.7]} 27. Kxc2 {[%clk 0:01:36.4]} 27... Qxa2+ {[%clk
0:00:43.5]} 28. Qb2 {[%clk 0:01:33.7]} 28... Rfc8+ {[%clk 0:00:44.3]} 29. Nc3
{[%clk 0:01:18.8]} 1-0

[Event "*** Titled Tuesday Blitz"]
[Site "Chess.com"]
[Date "2018.04.03"]
[Round "4"]
[White "HaryKane"]
[Black "GMMatamoros"]
[Result "0-1"]
[WhiteElo "2444"]
[BlackElo "2478"]
[TimeControl "180+2"]
[EndTime "13:50:07 PDT"]
[Termination "GMMatamoros won by resignation"]

1. e4 {[%clk 0:03:01.9]} 1... c5 {[%clk 0:03:00.3]} 2. Nf3 {[%clk 0:03:02.8]}
2... Nc6 {[%clk 0:03:01.1]} 3. d4 {[%clk 0:03:04.2]} 3... cxd4 {[%clk
0:03:02.7]} 4. Nxd4 {[%clk 0:03:05.8]} 4... e5 {[%clk 0:03:04]} 5. Nb5 {[%clk
0:03:06.2]} 5... d6 {[%clk 0:03:05.2]} 6. N1c3 {[%clk 0:03:06.4]} 6... a6 {[%clk
0:03:05.2]} 7. Na3 {[%clk 0:03:07.1]} 7... Be7 {[%clk 0:03:06.7]} 8. Nd5 {[%clk
0:03:02.9]} 8... Nf6 {[%clk 0:03:07.2]} 9. Nxf6+ {[%clk 0:03:01.8]} 9... Bxf6
{[%clk 0:03:09.1]} 10. Nc4 {[%clk 0:03:02.6]} 10... O-O {[%clk 0:03:06.6]} 11.
Be3 {[%clk 0:03:01.4]} 11... Nd4 {[%clk 0:03:03.6]} 12. c3 {[%clk 0:02:51.7]}
12... Re8 {[%clk 0:02:32.9]} 13. Be2 {[%clk 0:02:04.3]} 13... b5 {[%clk
0:02:16]} 14. cxd4 {[%clk 0:01:56.5]} 14... exd4 {[%clk 0:01:59.5]} 15. Bxd4
{[%clk 0:01:58.4]} 15... bxc4 {[%clk 0:02:00.5]} 16. O-O {[%clk 0:01:54.1]}
16... Bb7 {[%clk 0:01:36.4]} 17. Bxc4 {[%clk 0:01:20.2]} 17... Bxd4 {[%clk
0:01:15.9]} 18. Qxd4 {[%clk 0:01:19.8]} 18... Rxe4 {[%clk 0:01:16.8]} 19. Qd3
{[%clk 0:01:07.5]} 19... Qg5 {[%clk 0:01:17.1]} 20. f3 {[%clk 0:01:05.6]} 20...
Qc5+ {[%clk 0:01:17.6]} 21. Kh1 {[%clk 0:01:02.7]} 21... Rxc4 {[%clk 0:01:15]}
22. Rad1 {[%clk 0:01:04.2]} 22... d5 {[%clk 0:01:10.5]} 23. Rfe1 {[%clk
0:01:05]} 23... Rf8 {[%clk 0:01:08.5]} 24. Qf5 {[%clk 0:01:04.2]} 24... Rc2
{[%clk 0:01:03.6]} 25. Qd7 {[%clk 0:00:43.1]} 25... Bc8 {[%clk 0:00:54.3]} 26.
Qxd5 {[%clk 0:00:41.9]} 26... Qxd5 {[%clk 0:00:54.8]} 27. Rxd5 {[%clk
0:00:43.8]} 27... Rxb2 {[%clk 0:00:56.2]} 28. a4 {[%clk 0:00:44.7]} 28... Ra2
{[%clk 0:00:48.8]} 29. a5 {[%clk 0:00:45.4]} 29... Be6 {[%clk 0:00:47.7]} 30.
Rc5 {[%clk 0:00:44]} 30... Rd8 {[%clk 0:00:46.9]} 31. h3 {[%clk 0:00:44.4]}
31... g6 {[%clk 0:00:47.8]} 32. Ree5 {[%clk 0:00:38.9]} 32... Rd1+ {[%clk
0:00:45.4]} 33. Kh2 {[%clk 0:00:38.7]} 33... Rdd2 {[%clk 0:00:46.7]} 34. Rg5
{[%clk 0:00:39.7]} 34... h6 {[%clk 0:00:47.5]} 35. Rg3 {[%clk 0:00:40.8]} 35...
Kg7 {[%clk 0:00:47.9]} 36. h4 {[%clk 0:00:42.1]} 36... h5 {[%clk 0:00:48.8]} 37.
Rxh5 {[%clk 0:00:42.3]} 37... Rxg2+ {[%clk 0:00:48.5]} 38. Rxg2 {[%clk
0:00:41.3]} 38... Rxg2+ {[%clk 0:00:50.4]} 39. Kxg2 {[%clk 0:00:42.9]} 39...
gxh5 {[%clk 0:00:52.1]} 0-1

[Event "*** Titled Tuesday Blitz"]
[Site "Chess.com"]
[Date "2018.04.03"]
[Round "4"]
[White "KRASAVCHIK2002"]
[Black "lolo9292"]
[Result "1-0"]
[WhiteElo "1966"]
[BlackElo "1759"]
[TimeControl "180+2"]
[EndTime "13:50:10 PDT"]
[Termination "KRASAVCHIK2002 won by resignation"]

1. d4 {[%clk 0:03:00.6]} 1... Nf6 {[%clk 0:02:59.2]} 2. Nf3 {[%clk 0:03:01.2]}
2... e6 {[%clk 0:03:00.1]} 3. Bg5 {[%clk 0:03:01.7]} 3... b6 {[%clk 0:03:00.4]}
4. e3 {[%clk 0:03:02.1]} 4... Bb7 {[%clk 0:03:01.5]} 5. c3 {[%clk 0:03:03.5]}
5... Be7 {[%clk 0:03:02.6]} 6. Bd3 {[%clk 0:03:03.9]} 6... O-O {[%clk
0:03:03.4]} 7. Nbd2 {[%clk 0:03:04.8]} 7... h6 {[%clk 0:03:04.2]} 8. Bxf6 {[%clk
0:03:05.1]} 8... Bxf6 {[%clk 0:03:05.4]} 9. O-O {[%clk 0:03:06.6]} 9... d6
{[%clk 0:03:06.1]} 10. e4 {[%clk 0:03:07.6]} 10... Nd7 {[%clk 0:03:07.2]} 11.
Qe2 {[%clk 0:03:08.7]} 11... g6 {[%clk 0:03:04.1]} 12. Rae1 {[%clk 0:03:05.9]}
12... Bg7 {[%clk 0:03:05.3]} 13. h4 {[%clk 0:03:04.2]} 13... Nf6 {[%clk
0:03:06]} 14. g3 {[%clk 0:02:58.3]} 14... a6 {[%clk 0:02:56.7]} 15. e5 {[%clk
0:02:59.3]} 15... Nh5 {[%clk 0:02:54.2]} 16. Be4 {[%clk 0:02:54]} 16... Bxe4
{[%clk 0:02:53.1]} 17. Nxe4 {[%clk 0:02:48]} 17... d5 {[%clk 0:02:52.3]} 18.
Ned2 {[%clk 0:02:47.5]} 18... c5 {[%clk 0:02:51.1]} 19. Qe3 {[%clk 0:02:45.1]}
19... f5 {[%clk 0:02:39.5]} 20. exf6 {[%clk 0:02:39.1]} 20... Rxf6 {[%clk
0:02:34.1]} 21. Ne5 {[%clk 0:02:39.6]} 21... cxd4 {[%clk 0:02:30.4]} 22. cxd4
{[%clk 0:02:39.6]} 22... Kh7 {[%clk 0:02:23.1]} 23. Ng4 {[%clk 0:02:14.4]} 23...
Rf5 {[%clk 0:02:18.3]} 24. Qxe6 {[%clk 0:02:11.3]} 24... Qc7 {[%clk 0:02:17.3]}
25. Ne5 {[%clk 0:02:01.4]} 25... Bxe5 {[%clk 0:02:05.1]} 26. dxe5 {[%clk
0:01:57]} 26... Raf8 {[%clk 0:01:57.9]} 27. Qxd5 {[%clk 0:01:49.2]} 27... Rd8
{[%clk 0:01:54.8]} 28. Qc4 {[%clk 0:01:20.3]} 28... Qe7 {[%clk 0:01:36.2]} 29.
Qc3 {[%clk 0:01:17.9]} 29... Qd7 {[%clk 0:01:21.4]} 30. Ne4 {[%clk 0:01:12.8]}
30... Qd5 {[%clk 0:01:13.3]} 31. Nf6+ {[%clk 0:01:03.9]} 31... Nxf6 {[%clk
0:01:13.1]} 32. exf6 {[%clk 0:01:05.1]} 32... Rf8 {[%clk 0:01:14]} 33. Re7+
{[%clk 0:00:31.8]} 33... Rf7 {[%clk 0:01:12.2]} 34. Rfe1 {[%clk 0:00:31.1]}
34... h5 {[%clk 0:01:08.3]} 35. Rxf7+ {[%clk 0:00:30.2]} 1-0

[Event "*** Titled Tuesday Blitz"]
[Site "Chess.com"]
[Date "2018.04.03"]
[Round "4"]
[White "Generalas"]
[Black "Sanan_Sjugirov"]
[Result "0-1"]
[WhiteElo "2188"]
[BlackElo "2849"]
[TimeControl "180+2"]
[EndTime "13:50:26 PDT"]
[Termination "Sanan_Sjugirov won by resignation"]

1. e4 {[%clk 0:03:01.9]} 1... c5 {[%clk 0:03:00.5]} 2. c3 {[%clk 0:03:02]} 2...
Nf6 {[%clk 0:03:00.2]} 3. e5 {[%clk 0:03:02.7]} 3... Nd5 {[%clk 0:03:01.4]} 4.
d4 {[%clk 0:03:04.2]} 4... cxd4 {[%clk 0:03:02.3]} 5. Nf3 {[%clk 0:03:03.8]}
5... d6 {[%clk 0:03:02.9]} 6. cxd4 {[%clk 0:03:04.1]} 6... dxe5 {[%clk
0:03:03.8]} 7. dxe5 {[%clk 0:03:04.5]} 7... Bg4 {[%clk 0:03:02.9]} 8. Be2 {[%clk
0:03:04.1]} 8... Nc6 {[%clk 0:02:59.6]} 9. O-O {[%clk 0:03:04.3]} 9... e6 {[%clk
0:02:59.5]} 10. Re1 {[%clk 0:03:04]} 10... Bc5 {[%clk 0:02:49]} 11. Nbd2 {[%clk
0:03:01.1]} 11... Bf5 {[%clk 0:02:06.6]} 12. Nb3 {[%clk 0:02:35.9]} 12... Bb6
{[%clk 0:01:56.9]} 13. Bg5 {[%clk 0:02:35.8]} 13... Qc7 {[%clk 0:01:53.9]} 14.
Rc1 {[%clk 0:02:34.8]} 14... O-O {[%clk 0:01:52.3]} 15. Nfd4 {[%clk 0:02:10.4]}
15... Bg6 {[%clk 0:01:45.8]} 16. Bf3 {[%clk 0:02:09.3]} 16... Qd7 {[%clk
0:01:40.8]} 17. Nxc6 {[%clk 0:02:07.7]} 17... bxc6 {[%clk 0:01:42.7]} 18. Nc5
{[%clk 0:02:03.3]} 18... Qc7 {[%clk 0:01:36.6]} 19. Qe2 {[%clk 0:01:54.1]} 19...
h6 {[%clk 0:01:29.9]} 20. Bd2 {[%clk 0:01:51]} 20... Rfd8 {[%clk 0:01:27.7]} 21.
b4 {[%clk 0:01:27.1]} 21... Qe7 {[%clk 0:01:24.9]} 22. a3 {[%clk 0:01:25.9]}
22... a5 {[%clk 0:01:23.5]} 23. Na4 {[%clk 0:01:24.2]} 23... Bd4 {[%clk
0:01:14.3]} 24. Rc4 {[%clk 0:01:19.3]} 24... axb4 {[%clk 0:00:58.6]} 25. Rxd4
{[%clk 0:01:13.3]} 25... Rxa4 {[%clk 0:00:58.7]} 26. axb4 {[%clk 0:01:13.7]}
26... Qa7 {[%clk 0:00:50.1]} 27. Rc4 {[%clk 0:01:11.1]} 27... Ra2 {[%clk
0:00:46.7]} 28. Rxc6 {[%clk 0:00:50.6]} 28... Nxb4 {[%clk 0:00:42.9]} 29. Rd6
{[%clk 0:00:50.6]} 29... Rxd6 {[%clk 0:00:36.3]} 30. exd6 {[%clk 0:00:52.5]}
30... Qd4 {[%clk 0:00:37.3]} 31. Qe3 {[%clk 0:00:37]} 31... Rxd2 {[%clk
0:00:35.6]} 32. Qa3 {[%clk 0:00:27]} 32... Qxf2+ {[%clk 0:00:35.3]} 0-1

[Event "*** Titled Tuesday Blitz"]
[Site "Chess.com"]
[Date "2018.04.03"]
[Round "4"]
[White "patrisiii123"]
[Black "Tramontanaaa"]
[Result "0-1"]
[WhiteElo "2244"]
[BlackElo "2403"]
[TimeControl "180+2"]
[EndTime "13:50:27 PDT"]
[Termination "Tramontanaaa won by checkmate"]

1. e4 {[%clk 0:03:01.9]} 1... c5 {[%clk 0:03:00.6]} 2. Nf3 {[%clk 0:03:01.9]}
2... Nf6 {[%clk 0:03:01.6]} 3. e5 {[%clk 0:02:37.6]} 3... Nd5 {[%clk 0:03:01.2]}
4. Nc3 {[%clk 0:02:35.7]} 4... e6 {[%clk 0:03:02.1]} 5. Nxd5 {[%clk 0:02:31.1]}
5... exd5 {[%clk 0:03:03.1]} 6. d4 {[%clk 0:02:29.9]} 6... Nc6 {[%clk 0:03:04]}
7. dxc5 {[%clk 0:02:26.7]} 7... Bxc5 {[%clk 0:03:04.9]} 8. Qxd5 {[%clk
0:02:24.6]} 8... Qb6 {[%clk 0:03:05.9]} 9. Bc4 {[%clk 0:02:14.9]} 9... Bxf2+
{[%clk 0:03:03.8]} 10. Ke2 {[%clk 0:02:13.7]} 10... O-O {[%clk 0:03:04.2]} 11.
Rf1 {[%clk 0:02:10.8]} 11... Bc5 {[%clk 0:03:04.1]} 12. Ng5 {[%clk 0:02:09.3]}
12... Nxe5 {[%clk 0:03:05]} 13. Nxf7 {[%clk 0:01:56.7]} 13... Nxf7 {[%clk
0:02:59.7]} 14. Rxf7 {[%clk 0:01:51.4]} 14... Qe6+ {[%clk 0:02:59.5]} 15. Qxe6
{[%clk 0:01:48.7]} 15... dxe6 {[%clk 0:02:58.6]} 16. Rxf8+ {[%clk 0:01:46.3]}
16... Kxf8 {[%clk 0:02:59]} 17. Bg5 {[%clk 0:01:47.4]} 17... Bd7 {[%clk
0:02:40.5]} 18. Rd1 {[%clk 0:01:28.5]} 18... Ke8 {[%clk 0:02:39.4]} 19. c3
{[%clk 0:01:17.7]} 19... Rc8 {[%clk 0:02:26.3]} 20. Bd3 {[%clk 0:01:16.4]} 20...
e5 {[%clk 0:02:23.3]} 21. h3 {[%clk 0:01:14.6]} 21... g6 {[%clk 0:02:20.8]} 22.
Be4 {[%clk 0:01:14.9]} 22... Bc6 {[%clk 0:02:17.6]} 23. Bxc6+ {[%clk 0:01:14.5]}
23... bxc6 {[%clk 0:02:14.8]} 24. Be3 {[%clk 0:01:15.8]} 24... Bb6 {[%clk
0:02:11.2]} 25. Rd6 {[%clk 0:01:12.9]} 25... Ke7 {[%clk 0:02:08.9]} 26. Rd1
{[%clk 0:01:13.7]} 26... Ke6 {[%clk 0:02:04.2]} 27. c4 {[%clk 0:01:13.9]} 27...
Rb8 {[%clk 0:01:47.9]} 28. b3 {[%clk 0:01:11.6]} 28... Rf8 {[%clk 0:01:37.7]}
29. c5 {[%clk 0:00:51.5]} 29... Bc7 {[%clk 0:01:38.4]} 30. Bh6 {[%clk
0:00:52.4]} 30... Rd8 {[%clk 0:01:34.9]} 31. Rxd8 {[%clk 0:00:46.6]} 31... Bxd8
{[%clk 0:01:35.6]} 32. b4 {[%clk 0:00:45.6]} 32... a6 {[%clk 0:01:32.8]} 33. Kd3
{[%clk 0:00:46.2]} 33... Kd5 {[%clk 0:01:33.5]} 34. a3 {[%clk 0:00:45.7]} 34...
Bf6 {[%clk 0:01:31.8]} 35. Bc1 {[%clk 0:00:43.7]} 35... e4+ {[%clk 0:01:31.7]}
36. Ke3 {[%clk 0:00:44.4]} 36... Bg5+ {[%clk 0:01:31.8]} 37. Ke2 {[%clk
0:00:42.3]} 37... Bxc1 {[%clk 0:01:32.8]} 38. a4 {[%clk 0:00:42.6]} 38... Ba3
{[%clk 0:01:32.2]} 39. b5 {[%clk 0:00:41.6]} 39... axb5 {[%clk 0:01:32.9]} 40.
a5 {[%clk 0:00:43]} 40... Bxc5 {[%clk 0:01:33.7]} 41. a6 {[%clk 0:00:44.2]}
41... b4 {[%clk 0:01:34.4]} 42. Kd2 {[%clk 0:00:45.2]} 42... b3 {[%clk
0:01:35.5]} 43. Kc3 {[%clk 0:00:46.7]} 43... e3 {[%clk 0:01:36.8]} 44. Kxb3
{[%clk 0:00:47]} 44... e2 {[%clk 0:01:38]} 45. Kc2 {[%clk 0:00:48.9]} 45... e1=Q
{[%clk 0:01:38.9]} 46. g4 {[%clk 0:00:50.8]} 46... Qe4+ {[%clk 0:01:38.3]} 47.
Kc3 {[%clk 0:00:51.8]} 47... Qd4+ {[%clk 0:01:38.4]} 48. Kb3 {[%clk 0:00:53.2]}
48... Qc4+ {[%clk 0:01:39.2]} 49. Kb2 {[%clk 0:00:54.2]} 49... Bd4+ {[%clk
0:01:39.4]} 50. Ka3 {[%clk 0:00:55]} 50... Qxa6+ {[%clk 0:01:38.2]} 51. Kb3
{[%clk 0:00:55.6]} 51... Qc4+ {[%clk 0:01:39.2]} 52. Ka3 {[%clk 0:00:55.9]}
52... Qb5 {[%clk 0:01:39.8]} 53. h4 {[%clk 0:00:55.6]} 53... Kc4 {[%clk
0:01:40.9]} 54. Ka2 {[%clk 0:00:56.3]} 54... Qb2# {[%clk 0:01:41.4]} 0-1

[Event "*** Titled Tuesday Blitz"]
[Site "Chess.com"]
[Date "2018.04.03"]
[Round "4"]
[White "nickmatta"]
[Black "Kangoroo3000"]
[Result "1-0"]
[WhiteElo "2311"]
[BlackElo "2400"]
[TimeControl "180+2"]
[EndTime "13:50:44 PDT"]
[Termination "nickmatta won by resignation"]

1. d4 {[%clk 0:03:01.9]} 1... Nf6 {[%clk 0:02:56.7]} 2. c4 {[%clk 0:03:02.6]}
2... e6 {[%clk 0:02:57.4]} 3. Nc3 {[%clk 0:03:03.9]} 3... d5 {[%clk 0:02:57.3]}
4. Nf3 {[%clk 0:03:03]} 4... Be7 {[%clk 0:02:56.3]} 5. Bf4 {[%clk 0:03:03.8]}
5... O-O {[%clk 0:02:55.6]} 6. e3 {[%clk 0:03:04.7]} 6... Nbd7 {[%clk
0:02:57.2]} 7. c5 {[%clk 0:02:56.1]} 7... c6 {[%clk 0:02:57.5]} 8. h3 {[%clk
0:02:52.3]} 8... b6 {[%clk 0:02:57.1]} 9. b4 {[%clk 0:02:53.2]} 9... a5 {[%clk
0:02:58.6]} 10. a3 {[%clk 0:02:54]} 10... h6 {[%clk 0:03:00]} 11. Bd3 {[%clk
0:02:40.5]} 11... Ba6 {[%clk 0:02:58.6]} 12. Bxa6 {[%clk 0:02:40.9]} 12... Rxa6
{[%clk 0:03:00.5]} 13. b5 {[%clk 0:02:42.8]} 13... cxb5 {[%clk 0:03:00.4]} 14.
c6 {[%clk 0:02:44.7]} 14... Qc8 {[%clk 0:02:58.2]} 15. c7 {[%clk 0:02:28.3]}
15... b4 {[%clk 0:02:56.8]} 16. Nb5 {[%clk 0:02:19.4]} 16... Ne4 {[%clk
0:02:50.4]} 17. O-O {[%clk 0:02:11.4]} 17... bxa3 {[%clk 0:02:36.3]} 18. Qd3
{[%clk 0:01:50.1]} 18... Bb4 {[%clk 0:02:10.7]} 19. Rfc1 {[%clk 0:01:23.6]}
19... Ra8 {[%clk 0:02:02.3]} 20. Nxa3 {[%clk 0:00:47.2]} 20... Bd6 {[%clk
0:01:52.4]} 21. Bxd6 {[%clk 0:00:38.3]} 21... Nxd6 {[%clk 0:01:54.3]} 22. Nb5
{[%clk 0:00:40.2]} 22... Nc4 {[%clk 0:01:53.1]} 23. Nd2 {[%clk 0:00:37.6]} 23...
Qa6 {[%clk 0:01:47]} 24. Rab1 {[%clk 0:00:33.6]} 24... Nxd2 {[%clk 0:01:18.9]}
25. Qxd2 {[%clk 0:00:34.7]} 25... a4 {[%clk 0:01:20.2]} 26. Qc3 {[%clk
0:00:29.5]} 26... a3 {[%clk 0:01:15]} 27. Nd6 {[%clk 0:00:26.3]} 27... a2 {[%clk
0:01:13.2]} 28. Ra1 {[%clk 0:00:26.7]} 28... Rfc8 {[%clk 0:01:01.6]} 29. Qc6
{[%clk 0:00:20.2]} 29... Nf6 {[%clk 0:00:56]} 30. Nxc8 {[%clk 0:00:20.6]} 30...
Rxc8 {[%clk 0:00:57.9]} 31. Rc2 {[%clk 0:00:20.1]} 31... Qa5 {[%clk 0:00:21.7]}
32. Rcxa2 {[%clk 0:00:18]} 32... Qb4 {[%clk 0:00:18.2]} 33. Ra8 {[%clk
0:00:17.3]} 1-0